fUSD/lending_fUSD_20250513
["ID","MTS","AMOUNT","RATE_DAILY","PERIOD"]
[360949564,1747159929715,-400.0,0.00015068,2]
[360949565,1747159929724,-1314.16,0.00015068,2]
[360949566,1747159929734,-4183.88,0.00015068,2]
[360949567,1747159929743,-547.25,0.00015068,2]
[360949568,1747159929754,-579.54,0.00015068,2]
[360949569,1747159929763,-400.0,0.00015068,2]
[360949570,1747159929773,-786.38,0.00015068,2]
[360949571,1747159929782,-1255.33,0.00015068,2]
[360949572,1747159929792,-2046.23,0.00015068,2]
[360949573,1747159929801,-577.34,0.00015068,2]
[360949574,1747159929811,-9519.31,0.00015068,2]
[360949575,1747159929820,-834.73,0.00015068,2]
[360949576,1747159929829,-1346.7,0.00015068,2]
[360949577,1747159929838,-2754.3,0.00015068,2]
[360949578,1747159929848,-10256.28,0.00015068,2]
[360949579,1747159929857,-400.0,0.00015068,2]
[360949580,1747159929866,-487.25,0.00015068,2]
[360949581,1747159929875,-400.0,0.00015068,2]
[360949582,1747159929885,-400.0,0.00015068,2]
[360949583,1747159929895,-400.0,0.00015068,2]
[360949584,1747159929904,-2145.85,0.00015068,2]
[360949585,1747159929913,-778.75,0.00015068,2]
[360949586,1747159929923,-1086.29,0.00015068,2]
[360949587,1747159929932,-712.61,0.00015068,2]
[360949588,1747159929943,-1146.85,0.00015068,2]
[360949589,1747159929952,-427.04,0.00015068,2]
[360949590,1747159929961,-1787.73,0.00015068,2]
[360949591,1747159929971,-587.09,0.00015068,2]
[360949592,1747159929982,-2676.84,0.00015068,2]
[360949593,1747159929991,-936.8,0.00015068,2]
[360949594,1747159930000,-538.65,0.00015068,2]
[360949595,1747159930010,-570.54,0.00015068,2]
[360949596,1747159930019,-671.91,0.00015068,2]
[360949597,1747159930029,-1004.59,0.00015068,2]
[360949598,1747159930039,-583.74,0.00015068,2]
[360949599,1747159930049,-628.15,0.00015068,2]
[360949600,1747159930058,-409.42,0.00015068,2]
[360949601,1747159930068,-10626.02,0.00015068,2]
[360949602,1747159930077,-515.12,0.00015068,2]
[360949603,1747159930087,-6049.69,0.00015068,2]
[360949604,1747159930096,-1033.11,0.00015068,2]
[360949605,1747159930106,-400.0,0.00015068,2]
[360949606,1747159930116,-437.19,0.00015068,2]
[360949607,1747159930125,-569.55,0.00015068,2]
[360949608,1747159930135,-467.47,0.00015068,2]
[360949609,1747159930145,-2264.96,0.00015068,2]
[360949610,1747159930155,-795.31,0.00015068,2]
[360949611,1747159930165,-405.13,0.00015068,2]
[360949612,1747159930178,-1277.12,0.00015068,2]
[360949613,1747159930188,-400.0,0.00015068,2]
[360949614,1747159930197,-10483.18,0.00015068,2]
[360949615,1747159930207,-1585.22,0.00015068,2]
[360949616,1747159930218,-843.23,0.00015068,2]
[360949617,1747159930228,-1106.58,0.00015068,2]
[360949618,1747159930237,-400.0,0.00015068,2]
[360949619,1747159930247,-413.28,0.00015068,2]
[360949620,1747159930257,-1973.13,0.00015068,2]
[360949621,1747159930266,-400.0,0.00015068,2]
[360949622,1747159930275,-565.33,0.00015068,2]
[360949623,1747159930285,-1087.57,0.00015068,2]
[360949624,1747159930295,-2020.68,0.00015068,2]
[360949625,1747159930304,-400.0,0.00015068,2]
[360949626,1747159930313,-686.06,0.00015068,2]
[360949627,1747159930323,-495.25073703,0.00015068,2]
[360949628,1747159930334,-1760.36,0.00015068,2]
[360949629,1747159930343,-2493.43,0.00015068,2]
[360949630,1747159930353,-483.53,0.00015068,2]
[360949631,1747159930362,-523.64,0.00015068,2]
[360949632,1747159930371,-2179.19,0.00015068,2]
[360949633,1747159930381,-933.31,0.00015068,2]
[360949634,1747159930390,-1454.44,0.00015068,2]
[360949635,1747159930400,-669.67,0.00015068,2]
[360949636,1747159930410,-448.16,0.00015068,2]
[360949637,1747159930419,-495.63,0.00015068,2]
[360949638,1747159930428,-407.59,0.00015068,2]
[360949639,1747159930438,-2557.8,0.00015068,2]
[360949640,1747159930447,-733.19,0.00015068,2]
[360949641,1747159930457,-1387.03,0.00015068,2]
[360949642,1747159930467,-1323.75,0.00015068,2]
[360949643,1747159930476,-639.94,0.00015068,2]
[360949644,1747159930485,-1956.5,0.00015068,2]
[360949645,1747159930494,-101544.96,0.00015068,2]
[360949646,1747159930504,-447.02,0.00015068,2]
[360949647,1747159930513,-2181.62,0.00015068,2]
[360949648,1747159930523,-707.87,0.00015068,2]
[360949649,1747159930533,-946.15,0.00015068,2]
[360949650,1747159930543,-809.14,0.00015068,2]
[360949651,1747159930552,-676.8,0.00015068,2]
[360949652,1747159930561,-300.0,0.00015068,2]
[360949653,1747159930570,-290.44,0.00015079,2]
[360949654,1747159930580,-150.0,0.00015079,2]
[360949655,1747159930589,-4071.95,0.00015103,2]
[360949656,1747159930598,-1000.0,0.000152,2]
[360949657,1747159930608,-7000.0,0.000152,2]
[360949658,1747159930617,-152.0,0.00015229,5]
[360949659,1747159930626,-1000.0,0.000153,2]
[360949660,1747159930635,-1517.64,0.000153,2]
[360949661,1747159930644,-1000.0,0.000153,2]
[360949662,1747159930654,-330.53718262,0.00015342,2]
[360949663,1747159930663,-2722.32,0.00015342,2]
[360949664,1747159930672,-916.93,0.00015342,2]
[360949665,1747159930681,-520.78,0.00015342,2]
[360949666,1747159930690,-506.41,0.00015342,2]
[360949667,1747159930699,-694.78,0.00015342,2]
[360949668,1747159930708,-519.7130529,0.00015342,2]
[360949669,1747159930718,-626.45,0.00015342,2]
[360949670,1747159930727,-400.0,0.00015342,2]
[360949671,1747159930736,-626.11,0.00015342,2]
[360949672,1747159930746,-400.0,0.00015342,2]
[360949673,1747159930756,-463.34,0.00015342,2]
[360949674,1747159930765,-488.25,0.00015342,2]
[360949675,1747159930774,-400.0,0.00015342,2]
[360949676,1747159930784,-400.0,0.00015342,2]
[360949677,1747159930793,-657.34,0.00015342,2]
[360949678,1747159930802,-441.68,0.00015342,2]
[360949679,1747159930812,-645.08,0.00015342,2]
[360949680,1747159930821,-530.14,0.00015342,2]
[360949681,1747159930830,-400.0,0.00015342,2]
[360949682,1747159930839,-400.0,0.00015342,2]
[360949683,1747159930849,-852.22,0.00015342,2]
[360949684,1747159930858,-400.0,0.00015342,2]
[360949685,1747159930867,-820.71,0.00015342,2]
[360949686,1747159930877,-400.0,0.00015342,2]
[360949687,1747159930886,-621.83,0.00015342,2]
[360949688,1747159930895,-400.0,0.00015342,2]
[360949689,1747159930904,-478.47,0.00015342,2]
[360949690,1747159930914,-400.0,0.00015342,2]
[360949691,1747159930923,-404.78,0.00015342,2]
[360949692,1747159930932,-1162.05,0.00015342,2]
[360949693,1747159930941,-400.0,0.00015342,2]
[360949694,1747159930950,-1079.27,0.00015342,2]
[360949695,1747159930959,-577.59,0.00015342,2]
[360949696,1747159930969,-426.15,0.00015342,2]
[360949697,1747159930978,-3487.68,0.00015342,2]
[360949698,1747159930988,-400.0,0.00015342,2]
[360949699,1747159930998,-459.19,0.00015342,2]
[360949700,1747159931008,-444.36,0.00015342,2]
[360949701,1747159931018,-1738.21,0.00015342,2]
[360949702,1747159931027,-615.27,0.00015342,2]
[360949703,1747159931037,-420.8,0.00015342,2]
[360949704,1747159931046,-400.0,0.00015342,2]
[360949705,1747159931056,-1176.5,0.00015342,2]
[360949706,1747159931065,-1437.22,0.00015342,2]
[360949707,1747159931074,-652.56,0.00015342,2]
[360949708,1747159931083,-488.24,0.00015342,2]
[360949709,1747159931092,-1273.02,0.00015342,2]
[360949710,1747159931101,-400.0,0.00015342,2]
[360949711,1747159931110,-801.33,0.00015342,2]
[360949712,1747159931119,-788.97,0.00015342,2]
[360949713,1747159931128,-400.0,0.00015342,2]
[360949714,1747159931137,-414.37,0.00015342,2]
[360949715,1747159931146,-542.34,0.00015342,2]
[360949716,1747159931156,-449.97,0.00015342,2]
[360949717,1747159931166,-426.3,0.00015342,2]
[360949718,1747159931179,-400.0,0.00015342,2]
[360949719,1747159931188,-1871.8,0.00015342,2]
[360949720,1747159931198,-1359.59,0.00015342,2]
[360949721,1747159931207,-475.68,0.00015342,2]
[360949722,1747159931218,-472.81,0.00015342,2]
[360949723,1747159931228,-400.0,0.00015342,2]
[360949724,1747159931237,-539.11,0.00015342,2]
[360949725,1747159931247,-400.0,0.00015342,2]
[360949726,1747159931259,-1207.49,0.00015342,2]
[360949727,1747159931269,-400.0,0.00015342,2]
[360949728,1747159931278,-1135.76,0.00015342,2]
[360949729,1747159931287,-1233.2,0.00015342,2]
[360949730,1747159931297,-657.57,0.00015342,2]
[360949731,1747159931307,-726.64,0.00015342,2]
[360949732,1747159931317,-400.0,0.00015342,2]
[360949733,1747159931327,-1268.75,0.00015342,2]
[360949734,1747159931336,-529.97,0.00015342,2]
[360949735,1747159931346,-608.84,0.00015342,2]
[360949736,1747159931355,-400.0,0.00015342,2]
[360949737,1747159931365,-400.0,0.00015342,2]
[360949738,1747159931374,-457.91,0.00015342,2]
[360949739,1747159931383,-995.85,0.00015342,2]
[360949740,1747159931392,-416.03,0.00015342,2]
[360949741,1747159931401,-736.58,0.00015342,2]
[360949742,1747159931411,-400.0,0.00015342,2]
[360949743,1747159931421,-411.21,0.00015342,2]
[360949744,1747159931430,-553.17,0.00015342,2]
[360949745,1747159931439,-2771.94,0.00015342,2]
[360949746,1747159931448,-400.0,0.00015342,2]
[360949747,1747159931457,-547.99,0.00015342,2]
[360949748,1747159931467,-2640.23,0.00015342,2]
[360949749,1747159931476,-163.66442523,0.00015342,2]
[360949750,1747159931485,-1191.42,0.00015342,2]
[360949751,1747159931494,-1798.17,0.00015342,2]
[360949752,1747159931507,-3074.15,0.00015342,2]
[360949753,1747159931516,-1043.95,0.00015342,2]
[360949754,1747159931526,-828.17,0.00015342,2]
[360949755,1747159931536,-1909.44,0.00015342,2]
[360949756,1747159931546,-2209.39,0.00015342,2]
[360949757,1747159931555,-2113.1,0.00015342,2]
[360949758,1747159931564,-1584.79,0.00015342,2]
[360949759,1747159931573,-894.32,0.00015342,2]
[360949760,1747159931583,-2266.23,0.00015342,2]
[360949761,1747159931592,-400.0,0.00015342,2]
[360949762,1747159931602,-403.62,0.00015342,2]
[360949763,1747159931611,-400.0,0.00015342,2]
[360949764,1747159931620,-1157.78,0.00015342,2]
[360949765,1747159931630,-448.59,0.00015342,2]
[360949766,1747159931639,-2334.67,0.00015342,2]
[360949767,1747159931648,-2166.25,0.00015342,2]
[360949768,1747159931658,-3592.14,0.00015342,2]
[360949769,1747159931668,-414.75,0.00015342,2]
[360949770,1747159931677,-576.56,0.00015342,2]
[360949771,1747159931687,-400.0,0.00015342,2]
[360949772,1747159931697,-400.0,0.00015342,2]
[360949773,1747159931706,-529.13,0.00015342,2]
[360949774,1747159931941,-500.19,0.00015342,2]
[360949775,1747159931951,-1411.28,0.00015342,2]
[360949776,1747159931961,-445.9,0.00015342,2]
[360949777,1747159931972,-534.86,0.00015342,2]
[360949778,1747159931981,-706.58,0.00015342,2]
[360949779,1747159931991,-1060.09,0.00015342,2]
[360949780,1747159932001,-440.85,0.00015342,2]
[360949781,1747159932012,-785.11,0.00015342,2]
[360949782,1747159932022,-782.86,0.00015342,2]
[360949783,1747159932032,-508.12,0.00015342,2]
[360949784,1747159932042,-792.31,0.00015342,2]
[360949785,1747159932052,-1373.03,0.00015342,2]
[360949786,1747159932062,-507.26,0.00015342,2]
[360949787,1747159932071,-400.0,0.00015342,2]
[360949788,1747159932081,-439.37,0.00015342,2]
[360949789,1747159932090,-400.0,0.00015342,2]
[360949790,1747159932100,-835.87,0.00015342,2]
[360949791,1747159932109,-1203.29,0.00015342,2]
[360949792,1747159932119,-705.65,0.00015342,2]
[360949793,1747159932128,-871.93,0.00015342,2]
[360949794,1747159932138,-400.0,0.00015342,2]
[360949795,1747159932147,-786.26,0.00015342,2]
[360949796,1747159932156,-801.16,0.00015342,2]
[360949797,1747159932167,-1841.1,0.00015342,2]
[360949798,1747159932178,-522.01,0.00015342,2]
[360949799,1747159932188,-400.0,0.00015342,2]
[360949800,1747159932198,-952.91,0.00015342,2]
[360949801,1747159932207,-589.31,0.00015342,2]
[360949802,1747159932218,-440.12,0.00015342,2]
[360949803,1747159932228,-689.79,0.00015342,2]
[360949804,1747159932238,-1040.35,0.00015342,2]
[360949805,1747159932248,-2832.85,0.00015342,2]
[360949806,1747159932259,-400.0,0.00015342,2]
[360949807,1747159932269,-837.08,0.00015342,2]
[360949808,1747159932278,-722.75,0.00015342,2]
[360949809,1747159932288,-1518.61,0.00015342,2]
[360949810,1747159932297,-418.45,0.00015342,2]
[360949811,1747159932307,-538.57,0.00015342,2]
[360949812,1747159932316,-2035.72,0.00015342,2]
[360949813,1747159932326,-452.37,0.00015342,2]
[360949814,1747159932336,-504.22,0.00015342,2]
[360949815,1747159932346,-699.02,0.00015342,2]
[360949816,1747159932356,-928.98,0.00015342,2]
[360949817,1747159932366,-1636.63,0.00015342,2]
[360949818,1747159932376,-494.98,0.00015342,2]
[360949819,1747159932385,-1883.29,0.00015342,2]
[360949820,1747159932395,-610.23,0.00015342,2]
[360949821,1747159932405,-768.25,0.00015342,2]
[360949822,1747159932415,-768.75,0.00015342,2]
[360949823,1747159932425,-1014.11,0.00015342,2]
[360949824,1747159932436,-620.02,0.00015342,2]
[360949825,1747159932445,-1271.95,0.00015342,2]
[360949826,1747159932455,-400.0,0.00015342,2]
[360949827,1747159932465,-756.59,0.00015342,2]
[360949828,1747159932475,-935.97,0.00015342,2]
[360949829,1747159932485,-1412.1,0.00015342,2]
[360949830,1747159932495,-539.94,0.00015342,2]
[360949831,1747159932507,-1632.7,0.00015342,2]
[360949832,1747159932517,-871.79,0.00015342,2]
[360949833,1747159932527,-400.0,0.00015342,2]
[360949834,1747159932536,-451.47,0.00015342,2]
[360949835,1747159932546,-260.12777936,0.00015342,2]
[360949836,1747159932556,-560.27,0.00015342,2]
[360949837,1747159932566,-400.0,0.00015342,2]
[360949838,1747159932575,-2068.68,0.00015342,2]
[360949839,1747159932585,-967.47,0.00015342,2]
[360949840,1747159932595,-570.27,0.00015342,2]
[360949841,1747159932604,-1036.32,0.00015342,2]
[360949842,1747159932615,-444.85,0.00015342,2]
[360949843,1747159932624,-669.93,0.00015342,2]
[360949844,1747159932634,-680.61,0.00015342,2]
[360949845,1747159932643,-4665.34,0.00015342,2]
[360949846,1747159932653,-400.0,0.00015342,2]
[360949847,1747159932662,-1314.16,0.00015342,2]
[360949848,1747159932672,-4183.88,0.00015342,2]
[360949849,1747159932681,-547.25,0.00015342,2]
[360949850,1747159932691,-400.0,0.00015342,2]
[360949851,1747159932701,-786.38,0.00015342,2]
[360949852,1747159932711,-579.54,0.00015342,2]
[360949853,1747159932721,-1255.33,0.00015342,2]
[360949854,1747159932731,-2046.23,0.00015342,2]
[360949855,1747159932741,-577.34,0.00015342,2]
[360949856,1747159932751,-9519.31,0.00015342,2]
[360949857,1747159932763,-834.73,0.00015342,2]
[360949858,1747159932774,-1346.7,0.00015342,2]
[360949859,1747159932784,-2754.3,0.00015342,2]
[360949860,1747159932793,-10256.28,0.00015342,2]
[360949861,1747159932803,-400.0,0.00015342,2]
[360949862,1747159932813,-487.25,0.00015342,2]
[360949863,1747159932823,-216.51810979,0.00015342,2]
[360949864,1747159932833,-400.0,0.00015342,2]
[360949865,1747159932844,-400.0,0.00015342,2]
[360949866,1747159932853,-2145.85,0.00015342,2]
[360949867,1747159932863,-778.75,0.00015342,2]
[360949868,1747159932873,-1086.29,0.00015342,2]
[360949869,1747159932882,-712.61,0.00015342,2]
[360949870,1747159932892,-1146.85,0.00015342,2]
[360949871,1747159932901,-427.04,0.00015342,2]
[360949872,1747159932911,-1787.73,0.00015342,2]
[360949873,1747159932921,-587.09,0.00015342,2]
[360949874,1747159932930,-2676.84,0.00015342,2]
[360949875,1747159932940,-936.8,0.00015342,2]
[360949876,1747159932950,-538.65,0.00015342,2]
[360949877,1747159932960,-570.54,0.00015342,2]
[360949878,1747159932970,-671.91,0.00015342,2]
[360949879,1747159932979,-1004.59,0.00015342,2]
[360949880,1747159932989,-583.74,0.00015342,2]
[360949881,1747159932999,-628.15,0.00015342,2]
[360949882,1747159933011,-409.42,0.00015342,2]
[360949883,1747159933021,-10626.02,0.00015342,2]
[360949884,1747159933031,-515.12,0.00015342,2]
[360949885,1747159933041,-6049.69,0.00015342,2]
[360949886,1747159933051,-1033.11,0.00015342,2]
[360949887,1747159933061,-168.92,0.00015342,2]
[360949888,1747159933070,-437.19,0.00015342,2]
[360949889,1747159933080,-569.55,0.00015342,2]
[360949890,1747159933090,-467.47,0.00015342,2]
[360949891,1747159933100,-2264.96,0.00015342,2]
[360949892,1747159933109,-795.31,0.00015342,2]
[360949893,1747159933118,-405.13,0.00015342,2]
[360949894,1747159933128,-1277.12,0.00015342,2]
[360949895,1747159933137,-400.0,0.00015342,2]
[360949896,1747159933146,-10483.18,0.00015342,2]
[360949897,1747159933156,-1585.22,0.00015342,2]
[360949898,1747159933167,-843.23,0.00015342,2]
[360949899,1747159933179,-1106.58,0.00015342,2]
[360949900,1747159933189,-413.28,0.00015342,2]
[360949901,1747159933199,-400.0,0.00015342,2]
[360949902,1747159933210,-1973.13,0.00015342,2]
[360949903,1747159933220,-565.33,0.00015342,2]
[360949904,1747159933229,-176.94,0.00015342,2]
[360949905,1747159933240,-1087.57,0.00015342,2]
[360949906,1747159933250,-2020.68,0.00015342,2]
[360949907,1747159933261,-400.0,0.00015342,2]
[360949908,1747159933270,-686.06,0.00015342,2]
[360949909,1747159933280,-1760.36,0.00015342,2]
[360949910,1747159933290,-2493.43,0.00015342,2]
[360949911,1747159933299,-483.53,0.00015342,2]
[360949912,1747159933308,-523.64,0.00015342,2]
[360949913,1747159933318,-2179.19,0.00015342,2]
[360949914,1747159933327,-933.31,0.00015342,2]
[360949915,1747159933336,-1454.44,0.00015342,2]
[360949916,1747159933346,-669.67,0.00015342,2]
[360949917,1747159933355,-448.16,0.00015342,2]
[360949918,1747159933365,-495.63,0.00015342,2]
[360949919,1747159933374,-407.59,0.00015342,2]
[360949920,1747159933383,-2557.8,0.00015342,2]
[360949921,1747159933392,-733.19,0.00015342,2]
[360949922,1747159933402,-1387.03,0.00015342,2]
[360949923,1747159933411,-1323.75,0.00015342,2]
[360949924,1747159933420,-639.94,0.00015342,2]
[360949925,1747159933430,-1956.5,0.00015342,2]
[360949926,1747159933439,-101544.96,0.00015342,2]
[360949927,1747159933449,-447.02,0.00015342,2]
[360949928,1747159933459,-2181.62,0.00015342,2]
[360949929,1747159933469,-707.87,0.00015342,2]
[360949930,1747159933479,-946.15,0.00015342,2]
[360949931,1747159933488,-809.14,0.00015342,2]
[360949932,1747159933498,-676.8,0.00015342,2]
[360949933,1747159933508,-4071.95,0.00015377,2]
[360949934,1747159933517,-491.02640719,0.000154,2]
[360949935,1747159933527,-16150.17271551,0.000154,2]
[360949936,1747159933538,-5235.6,0.000154,2]
[360949937,1747159933548,-400.0,0.00015456,5]
[360949938,1747159933557,-1000.0,0.000155,2]
[360949939,1747159933567,-310.0,0.00015561,7]
[360949940,1747159933577,-2722.32,0.00015616,2]
[360949941,1747159933587,-916.93,0.00015616,2]
[360949942,1747159933596,-520.78,0.00015616,2]
[360949943,1747159933606,-506.41,0.00015616,2]
[360949944,1747159933616,-694.78,0.00015616,2]
[360949945,1747159933627,-626.45,0.00015616,2]
[360949946,1747159933638,-400.0,0.00015616,2]
[360949947,1747159933648,-626.11,0.00015616,2]
[360949948,1747159933658,-400.0,0.00015616,2]
[360949949,1747159933667,-463.34,0.00015616,2]
[360949950,1747159933676,-488.25,0.00015616,2]
[360949951,1747159933685,-400.0,0.00015616,2]
[360949952,1747159933695,-522.02083149,0.00015616,2]
[360949953,1747159933705,-657.34,0.00015616,2]
[360949954,1747159933715,-441.68,0.00015616,2]
[360949955,1747159933724,-645.08,0.00015616,2]
[360949956,1747159933734,-530.14,0.00015616,2]
[360949957,1747159933743,-400.0,0.00015616,2]
[360949958,1747159933753,-852.22,0.00015616,2]
[360949959,1747159933763,-261.16971028,0.00015616,2]
[360949960,1747159933773,-820.71,0.00015616,2]
[360949961,1747159933782,-400.0,0.00015616,2]
[360949962,1747159933791,-621.83,0.00015616,2]
[360949963,1747159933801,-400.0,0.00015616,2]
[360949964,1747159933811,-478.47,0.00015616,2]
[360949965,1747159933820,-400.0,0.00015616,2]
[360949966,1747159933829,-404.78,0.00015616,2]
[360949967,1747159933839,-1162.05,0.00015616,2]
[360949968,1747159933848,-400.0,0.00015616,2]
[360949969,1747159933858,-1079.27,0.00015616,2]
[360949970,1747159933867,-577.59,0.00015616,2]
[360949971,1747159933877,-426.15,0.00015616,2]
[360949972,1747159933886,-3487.68,0.00015616,2]
[360949973,1747159933896,-400.0,0.00015616,2]
[360949974,1747159933906,-459.19,0.00015616,2]
[360949975,1747159933916,-444.36,0.00015616,2]
[360949976,1747159933926,-1738.21,0.00015616,2]
[360949977,1747159933935,-615.27,0.00015616,2]
[360949978,1747159933948,-420.8,0.00015616,2]
[360949979,1747159933958,-400.0,0.00015616,2]
[360949980,1747159933968,-1176.5,0.00015616,2]
[360949981,1747159933982,-1437.22,0.00015616,2]
[360949982,1747159933992,-652.56,0.00015616,2]
[360949983,1747159934001,-488.24,0.00015616,2]
[360949984,1747159934012,-1273.02,0.00015616,2]
[360949985,1747159934022,-400.0,0.00015616,2]
[360949986,1747159934032,-801.33,0.00015616,2]
[360949987,1747159934041,-788.97,0.00015616,2]
[360949988,1747159934051,-400.0,0.00015616,2]
[360949989,1747159934060,-414.37,0.00015616,2]
[360949990,1747159934070,-542.34,0.00015616,2]
[360949991,1747159934079,-449.97,0.00015616,2]
[360949992,1747159934089,-426.3,0.00015616,2]
[360949993,1747159934099,-400.0,0.00015616,2]
[360949994,1747159934109,-1871.8,0.00015616,2]
[360949995,1747159934119,-1359.59,0.00015616,2]
[360949996,1747159934129,-475.68,0.00015616,2]
[360949997,1747159934139,-472.81,0.00015616,2]
[360949998,1747159934148,-400.0,0.00015616,2]
[360949999,1747159934158,-539.11,0.00015616,2]
[360950000,1747159934168,-516.53048579,0.00015616,2]
[360950001,1747159934180,-1207.49,0.00015616,2]
[360950002,1747159934190,-400.0,0.00015616,2]
[360950003,1747159934199,-1135.76,0.00015616,2]
[360950004,1747159934210,-1233.2,0.00015616,2]
[360950005,1747159934220,-657.57,0.00015616,2]
[360950006,1747159934229,-726.64,0.00015616,2]
[360950007,1747159934239,-400.0,0.00015616,2]
[360950008,1747159934248,-1268.75,0.00015616,2]
[360950009,1747159934258,-529.97,0.00015616,2]
[360950010,1747159934267,-608.84,0.00015616,2]
[360950011,1747159934276,-541.68142714,0.00015616,2]
[360950012,1747159934286,-400.0,0.00015616,2]
[360950013,1747159934295,-457.91,0.00015616,2]
[360950014,1747159934305,-416.03,0.00015616,2]
[360950015,1747159934314,-995.85,0.00015616,2]
[360950016,1747159934324,-736.58,0.00015616,2]
[360950017,1747159934420,-400.0,0.00015616,2]
[360950018,1747159934430,-411.21,0.00015616,2]
[360950019,1747159934440,-553.17,0.00015616,2]
[360950020,1747159934449,-2771.94,0.00015616,2]
[360950021,1747159934459,-400.0,0.00015616,2]
[360950022,1747159934469,-547.99,0.00015616,2]
[360950023,1747159934479,-2640.23,0.00015616,2]
[360950024,1747159934489,-1191.42,0.00015616,2]
[360950025,1747159934499,-1798.17,0.00015616,2]
[360950026,1747159934510,-3074.15,0.00015616,2]
[360950027,1747159934520,-1043.95,0.00015616,2]
[360950028,1747159934529,-828.17,0.00015616,2]
[360950029,1747159934539,-1909.44,0.00015616,2]
[360950030,1747159934549,-2209.39,0.00015616,2]
[360950031,1747159934558,-2113.1,0.00015616,2]
[360950032,1747159934567,-1584.79,0.00015616,2]
[360950033,1747159934578,-894.32,0.00015616,2]
[360950034,1747159934588,-2266.23,0.00015616,2]
[360950035,1747159934597,-400.0,0.00015616,2]
[360950036,1747159934606,-403.62,0.00015616,2]
[360950037,1747159934615,-400.0,0.00015616,2]
[360950038,1747159934625,-1157.78,0.00015616,2]
[360950039,1747159934635,-448.59,0.00015616,2]
[360950040,1747159934647,-2334.67,0.00015616,2]
[360950041,1747159934656,-2166.25,0.00015616,2]
[360950042,1747159934666,-3592.14,0.00015616,2]
[360950043,1747159934675,-414.75,0.00015616,2]
[360950044,1747159934684,-576.56,0.00015616,2]
[360950045,1747159934694,-400.0,0.00015616,2]
[360950046,1747159934703,-494.30772805,0.00015616,2]
[360950047,1747159934714,-529.13,0.00015616,2]
[360950048,1747159934723,-500.19,0.00015616,2]
[360950049,1747159934733,-1411.28,0.00015616,2]
[360950050,1747159934742,-445.9,0.00015616,2]
[360950051,1747159934753,-534.86,0.00015616,2]
[360950052,1747159934763,-706.58,0.00015616,2]
[360950053,1747159934773,-1060.09,0.00015616,2]
[360950054,1747159934782,-440.85,0.00015616,2]
[360950055,1747159934792,-785.11,0.00015616,2]
[360950056,1747159934802,-782.86,0.00015616,2]
[360950057,1747159934811,-508.12,0.00015616,2]
[360950058,1747159934820,-792.31,0.00015616,2]
[360950059,1747159934830,-1373.03,0.00015616,2]
[360950060,1747159934839,-507.26,0.00015616,2]
[360950061,1747159934849,-400.0,0.00015616,2]
[360950062,1747159934858,-439.37,0.00015616,2]
[360950063,1747159934867,-526.84913674,0.00015616,2]